Cogmind - Beta 15 @@@ ROGUE MODE // 2025.07.02 @ 16:23:00 Player: Aaron Result: Destroyed by D-53 Grenadier with Mini Grenade Launcher Performance ------------- Evolutions (0) 0 Regions Visited (2) 400 Robots Destroyed (15) 75 Value Destroyed (159) 159 Prototype IDs (3) 60 Alien Tech Used (0) 0 Bonus (0) 0 TOTAL SCORE: 694 Bonus ------- None Cogmind --------- Core Integrity 0/250 Matter 300/300 Energy 100/100 System Corruption 0% Temperature Cool (0) Movement Core (50) Location -10/Mines Parts ------- > --- POWER (1) -------- (None) > --- PROPULSION (2) --- (None) > --- UTILITY (2) ------ Structural Scanner > --- WEAPON (2) ------- (None) > --- INVENTORY (5) ---- Improved Terrain Scanner Improved Terrain Scanner Peak State ------------ > --- POWER ------------ Light Ion Engine > --- PROPULSION ------- Wheel Wheel > --- UTILITY ---------- Small Storage Unit Improved Terrain Scanner > --- WEAPON ----------- EM Pulse Gun Light Assault Rifle > --- INVENTORY -------- Light Ion Engine Wheel Light Assault Rifle [Rating: 9] Favorites ----------- Power Light Ion Engine Engine Light Ion Engine Propulsion Wheel Wheel Wheel Hover Unit Hover Unit Utility Seismic Detector Device Seismic Detector Storage Small Storage Unit Processor Signal Interpreter Weapon Mining Laser Energy Gun EM Pulse Gun Ballistic Gun Light Assault Rifle Special Weapon Mining Laser Build | -11 -10 -10 ------- Run | Yrd Mat Min Slots Evolved . | . . . Power . | . . . Propulsion . | . . . Utility . | . . . Weapon . | . . . Parts Attached 21 | 12 9 . Power 2 | 1 1 . Engine 2 | 1 1 . Core . | . . . Reactor . | . . . Propulsion 6 | 4 2 . Treads . | . . . Leg . | . . . Wheel 4 | 4 . . Hover 2 | . 2 . Flight . | . . . Utility 8 | 3 5 . Device 6 | 2 4 . Storage 1 | 1 . . Processor 1 | . 1 . Hackware . | . . . Protection . | . . . Artifact . | . . . Weapon 5 | 4 1 . Energy Gun 1 | 1 . . Energy Cannon . | . . . Ballistic Gun 2 | 2 . . Ballistic Cannon . | . . . Launcher . | . . . Special Weapon 2 | 1 1 . Impact Weapon . | . . . Slashing Weapon . | . . . Piercing Weapon . | . . . Special Melee Weapon . | . . . Unidentified Prototypes . | . . . Parts Lost 10 | . 4 6 Power 2 | . 1 1 Propulsion 4 | . 1 3 Utility 1 | . . 1 Weapon 3 | . 2 1 Highest Loss Streak 6 | . 3 6 To Critical Strikes . | . . . Average Backups 3 | 2 4 3 Power . | . . . Propulsion 1 | . 1 1 Utility 1 | . 2 2 Weapon . | . . . Tool/Special . | . . . Unused Backups . | . . . Power . | . . . Propulsion . | . . . Utility . | . . . Weapon . | . . . Tool/Special . | . . . Average Slot Usage (%) 91 | . 97 59 Engine 13 | . 13 10 Wheel 18 | . 20 6 Hover 6 | . 6 7 Device 26 | . 27 25 Energy Gun 10 | . 13 . Special Weapon 12 | . 13 7 Peak Build Rating 9 | 9 9 5 Average Rating 6 | 6 7 4 On Entrance 4 | . 9 5 Naked Turns . | . . . Heaviest Build 11 | 11 8 6 Greatest Support 26 | 26 20 20 Greatest Overweight (x) 1 | . 1 . Average Overweight (x) . | . . . Largest Inventory Capacity 8 | 8 5 5 Average Capacity 5 | 7 5 5 Most Carried 5 | 5 5 4 Average Carried 3 | 2 4 3 Final Capacity 5 | 5 5 5 Final Carried 4 | 4 4 2 Class Distribution -------------------- 86% | Mutant 13% | Scavenger-Mutant Dominant Class ---------------- Mutant | -10/Materials Mutant | -10/Mines Resources | -11 -10 -10 ----------- Run | Yrd Mat Min Matter Collected 452 | 355 97 . Remotely . | . . . Salvage Created 389 | 223 166 . Parts 35 | 26 9 . Haulers Intercepted . | . . . Recyclers Shooed . | . . . Parts Field Recycled . | . . . Retrieved Matter . | . . . Parts Self-Destructed . | . . . Prevented . | . . . Kills | -11 -10 -10 ------- Run | Yrd Mat Min Combat Hostiles Destroyed . | . . . Classes Destroyed 6 | 3 3 . Worker 5 | 2 3 . Builder 1 | . 1 . Tunneler 5 | 5 . . Recycler 1 | 1 . . Operator 1 | . 1 . Watcher 2 | . 2 . Best Kill Streak 8 | 8 5 . Combat Bots Only . | . . . Max Kills in Single Turn 1 | 1 1 . Gunslinging . | . . . Exploded . | . . . Melee . | . . . Uniques/NPCs Destroyed . | . . . Combat | -11 -10 -10 -------- Run | Yrd Mat Min Hostile Shots Fired 110 | . 46 64 Missed 42 | . 19 23 Hits 68 | . 27 41 Projectile 68 | . 27 41 AOE 1 | . . 1 Critical Strikes 1 | . 1 . Damage Taken 673 | . 341 332 Core 256 | . 90 166 Absorbed by Shields . | . . . Core Remaining (%) 100 | 100 . . Volleys Fired 87 | 22 61 4 Largest 2 | 2 1 1 Hottest 100 | 60 100 100 Shots Fired 109 | 44 61 4 Gun 72 | 44 28 . Cannon . | . . . Launcher . | . . . Special 37 | . 33 4 Kinetic 25 | 25 . . Thermal 37 | . 33 4 Explosive . | . . . Electromagnetic 47 | 19 28 . Robot Hit Streak 10 | 10 7 1 Robot Miss Streak 3 | 2 3 3 Penetration Max . | . . . Secondary Targets . | . . . Shots Hit Robots 47 | 29 17 1 Core Hits 18 | 12 6 . Critical Kills . | . . . Critical Parts Destroyed 1 | 1 . . Critical Strikes 3 | 3 . . Destroy 1 | 1 . . Corrupt 2 | 2 . . Melee Attacks . | . . . Impact . | . . . Slashing . | . . . Piercing . | . . . Sneak Attacks . | . . . Combat Hostiles . | . . . Follow-up Attacks . | . . . Damage Inflicted 672 | 348 300 24 Guns 620 | 325 295 . Cannons . | . . . Explosions 23 | 23 . . Melee . | . . . Ramming 5 | . 5 . Kinetic 119 | 119 . . Thermal 47 | 23 . 24 Explosive . | . . . Electromagnetic 501 | 206 295 . Impact . | . . . Slashing . | . . . Piercing . | . . . Highest Corruption . | . . . Average Corruption . | . . . Corruption Purged . | . . . Corruption Blocked . | . . . Overload Shots . | . . . Overflow Damage . | . . . Projectiles . | . . . Explosions . | . . . Melee . | . . . Knockbacks . | . . . Impact . | . . . Kinetic . | . . . Secondary . | . . . Self-Inflicted Damage 2 | . 2 . Shots . | . . . Rammed 1 | . 1 . Targets Rammed 1 | . 1 . Kicked . | . . . Crushed . | . . . Highest Temperature 140 | 40 140 48 Average Temperature 39 | 22 46 19 Received Heat Transfer 210 | . 204 6 Siege Activations . | . . . Martial Activations . | . . . Shielding Activations . | . . . Robots Disrupted . | . . . Combat Hostiles . | . . . Robots Corrupted 1 | . 1 . Combat Hostiles . | . . . Parts Fried 4 | . 4 . Impact Corruptions . | . . . Robots Melted . | . . . Combat Hostiles . | . . . Parts Melted . | . . . Heat Transferred 100 | 50 . 50 Parts Sabotaged . | . . . Parts Stolen . | . . . Parts Stripped . | . . . Power Chain Reactions 1 | 1 . . Alert | -11 -10 -10 ------- Run | Yrd Mat Min Maximum Alert Level 1 | . 1 . Low Security (%) 98 | 100 97 100 Level 1 1 | . 2 . Level 2 . | . . . Level 3 . | . . . Level 4 . | . . . Level 5 . | . . . High Security . | . . . Max Security . | . . . Peak Influence 209 | 10 209 90 Initial 70 | . . 70 Average 80 | 3 101 46 Influence Increases 580 | 40 492 48 Destroy 0b10 Robot/NC 75 | 40 35 . Destroy Leader 4 | . 4 . Successful Hack 44 | . 44 . Select Force Hacks 50 | . 50 . Destroy Structure 32 | . 29 3 Lose Combat Pursuer 375 | . 330 45 Influence Decreases 565 | 40 310 215 Entered New Map 112 | . . 112 Time Decay 370 | 40 270 60 Lost Part 83 | . 40 43 Squads Dispatched 5 | . 5 . Investigation 3 | . 3 . Extermination . | . . . Reinforcement 2 | . 2 . Assault . | . . . Garrison . | . . . Intercept . | . . . Searches Triggered . | . . . Construction Impeded . | . . . Haulers Reinforced . | . . . Active Scanning Responses . | . . . Cargo Convoy Interrupts . | . . . Stealth | -11 -10 -10 --------- Run | Yrd Mat Min Distress Signals 3 | . 3 . Communications Jammed . | . . . Distress Signals . | . . . Times Spotted 55 | . 30 25 Peak Tracking Total 21 | . 7 21 Tactical Retreats 8 | . 6 2 Traps | -11 -10 -10 ------- Run | Yrd Mat Min Traps Triggered . | . . . Indirectly . | . . . Trap Hack Attempts . | . . . Triggered . | . . . Disarmed . | . . . Reprogrammed . | . . . Reused . | . . . Traps Extracted . | . . . Installed . | . . . Triggered . | . . . Machines | -11 -10 -10 ---------- Run | Yrd Mat Min Machines Disabled . | . . . Max in Single Turn . | . . . Machines Repaired . | . . . Machines Dismantled . | . . . Machines Sabotaged 1 | . 1 . Overloaded Fab Kills . | . . . Hacking | -11 -10 -10 --------- Run | Yrd Mat Min Machines Accessed 9 | . 9 . Terminals 6 | . 6 . Fabricators . | . . . Repair Stations 1 | . 1 . Recycling Units 2 | . 2 . Scanalyzers . | . . . Garrison Access . | . . . Total Hacks 34 | . 34 . Successful 19 | . 19 . Failed 15 | . 15 . Catastrophic 1 | . 1 . Database Lockouts . | . . . Manual 30 | . 30 . Terminals 26 | . 26 . Fabricators . | . . . Repair Stations 1 | . 1 . Recycling Units 7 | . 7 . Scanalyzers . | . . . Garrison Access . | . . . Terminal Hacks 4 | . 4 . Prototype ID Bank 2 | . 2 . Branch Access Points 1 | . 1 . Zone Layout 1 | . 1 . Fabricator Hacks . | . . . Repair Station Hacks . | . . . Recycling Unit Hacks 2 | . 2 . Report Inventory 1 | . 1 . Retrieve Components 1 | . 1 . Scanalyzer . | . . . Garrison Access Hacks . | . . . Unauthorized Hacks 12 | . 12 . Terminals 9 | . 9 . Track 2 | . 2 . Assimilate 1 | . 1 . Botnet 4 | . 4 . Sabotage 2 | . 2 . Fabricators . | . . . Repair Stations 1 | . 1 . Mechanics 1 | . 1 . Recycling Units 2 | . 2 . Monitor 1 | . 1 . Recyclers 1 | . 1 . Scanalyzers . | . . . Garrison Access . | . . . Data Cores Recovered . | . . . Used . | . . . Hacking Detections 8 | . 8 . Full Trace Events 2 | . 2 . Feedback Events . | . . . Feedback Blocked . | . . . Robot Schematics Acquired . | . . . Robots Built . | . . . Authchips . | . . . Time . | . . . Total Robot Build Rating . | . . . Part Schematics Acquired . | . . . Parts Built . | . . . Authchips . | . . . Time . | . . . Total Part Build Rating . | . . . Parts Repaired . | . . . Time . | . . . Parts Recycled . | . . . Recycled Matter . | . . . Retrieved Matter . | . . . Retrieved Components 3 | . 3 . Parts Scanalyzed . | . . . Part Schematics Acquired . | . . . Parts Damaged . | . . . Bothacking | -11 -10 -10 ------------ Run | Yrd Mat Min Used RIF Installer . | . . . Robots Hacked . | . . . Non-combat . | . . . Combat . | . . . Robot Hacks Applied . | . . . Relay Couplers Released . | . . . Fabnet Peak Effective % . | . . . Robots Rewired . | . . . Allies Hacked . | . . . Hacks Repelled . | . . . Allies | -11 -10 -10 -------- Run | Yrd Mat Min Total Allies . | . . . Largest Group . | . . . Highest-Rated Group . | . . . Highest-Rated Ally . | . . . Total Orders . | . . . Ally Attacks . | . . . Total Damage . | . . . Kills . | . . . Allies Corrupted . | . . . Allies Melted . | . . . Intel | -11 -10 -10 ------- Run | Yrd Mat Min Active Infowar (turns) 1067 | 40 859 168 Sensors 52 | . 52 . Terrain 171 | 40 131 . Structural 840 | . 672 168 Seismic 969 | 20 804 145 Robot Analysis Total . | . . . Derelict Logs Recovered 1 | . . 1 Drone Launches . | . . . Drone Recoveries . | . . . Exploration | -11 -10 -10 ------------- Run | Yrd Mat Min Turns Passed 1181 | 153 860 168 Spaces Moved 907 | 83 603 221 Core 50 | 6 . 44 Treads . | . . . Legs . | . . . Wheels 447 | 77 314 56 Hover 410 | . 289 121 Flight . | . . . Fastest Speed 50 | 50 56 50 Average Speed 68 | 81 69 63 Slowest Speed 125 | 90 125 80 Overloaded Moves . | . . . Propulsion Burnouts . | . . . Robots Hopped . | . . . Potential Cave-ins . | . . . Cave-ins Triggered . | . . . Exploration Rate (%) 48 | 4 72 70 Regions Visited 2 Branch Regions 1 Pre-discovered Areas 1 | . . 1 Known Exits Taken 1 | . 1 . Unknown Exits Taken 1 | 1 . . Scrap Searched 2 | . . 2 Spaces Dug 35 | . 33 2 Terrain Destroyed 44 | 8 33 3 Melee . | . . . Projectile 36 | . 33 3 AOE 8 | 8 . . Terrain Rammed . | . . . Walls Destroyed . | . . . Machines Disabled . | . . . Actions | -11 -10 -10 --------- Run | Yrd Mat Min Total 1279 | 124 917 238 Wait 242 | . 231 11 Move 905 | 82 602 221 Hop . | . . . Pick Up 8 | 4 4 . Fast Attach 12 | 8 4 . Attach 4 | 1 1 2 Detach 1 | . 1 . Swap 11 | 4 7 . Drop 8 | 3 5 . Fire 87 | 22 61 4 Melee . | . . . Ram 1 | . 1 . Kick . | . . . Crush . | . . . Escape Stasis . | . . . Rewire . | . . . Trap . | . . . Miscellaneous . | . . . Route ------- -11/Scrapyard -10/Materials (discovered 3 exits: [*Mat x2] / *Min) -10/Mines History --------- Turn | Location | Event 6 | -11/Scrapyard | Discovered new exit (range 16) 154 | -11/Scrapyard | Entered Materials 382 | -10/Materials | Discovered new exit (range 3) 468 | -10/Materials | Build established: Mutant 486 | -10/Materials | Discovered new exit (range 15) 964 | -10/Materials | Identified exit to Mines 1014 | -10/Materials | Entered Mines 1024 | -10/Mines | Learned location of Zion (-6) 1029 | -10/Mines | Lost 3 parts (1p1n1w) 1137 | -10/Mines | Core integrity fell below 50% 1158 | -10/Mines | Assembled infested the area 1163 | -10/Mines | Core integrity fell below 20% 1182 | -10/Mines | Destroyed by D-53 Grenadier with Mini Grenade Launcher Last Messages --------------- Seismic Detector destroyed. Searching scrap... Found Lgt. Armor Plating. Found 52 Matter. [Achievement: Hunted] as-18177 destroyed. as-35860 destroyed. as-56975 destroyed. as-28441 destroyed. as-09269 destroyed. as-19999 sneak attacks. as-30062 destroyed. as-23611 destroyed. S-10 Pest system corrupted by crushing effect. S-10 Pest destroyed. as-33677 destroyed. as-79683 destroyed. S-10 Pest destroyed. as-85923 destroyed. as-19999 destroyed. Map ----- +----------------------------------------------------+ | | | | | | | | | | | ?????????????????????????????????????????????????? | | ?????????????????????????????????????????????????? | | ?????????????????????????????????????????????????? | | ?????????????????????????????????????????????????? | | ?????????????????????????????????????????????????? | | ?????????????????????????????????????????????????? | | ???????????????????????????????? #??????????????? | | ?????????????????????????####??? ##??????????????? | | ????????????????????########### ##??????????????? | | ???????????????????####### #### ##??????????????? | | ???????????????####### ##??????????????? | | ???????????????###### ##??????????????? | | ??######???????# < % ##??????????????? | | ?############???# d ##??????????????? | | ?### #######???## % [ =* ##??????????????? | | ?## ##???## # ??????????????????? | | ?## ##???## # # ??????????????????? | | ### ###???## ## ##??????????????????? | | ### ###????##%### # ##??????????????????? | | ## ###?????## %% ###??????????????????? | | # ###??????##*!#####@ ###???????????????????? | | ##???????## ##########???????????????????? | | ###??????## ##?######????????????????????? | | ####????### ##???????????????????????????? | | ####??#### ##???????????????????????????? | | ### ###??### ##???????????????????????????? | | ##### ##??## ##???????????????????????????? | | ####### ##??## ##???????????????????????????? | | ???##### ##?### ###???????????????????????????? | | ###??## ##?### ###???????????????????????????? | | ####?## ##?## ##????????????????????????????? | | ###?## ###?## ###???????????????????????????? | | ##?## ###?## ####??????????????????????????? | | ##?## ###### ###??????????????????????????? | | ##?## ###### ##??????????????????????????? | | ###?## ##??????????????????????????? | | ####?## ###??????????????????????????? | | ###??######### #####??????????????????????????? | | #????########## #####???????????????????????????? | | #???????????### ###?????????????????????????????? | | #????????????## ##??????????????????????????????? | | ###??????????## ##??????????????????????????????? | | ###??????????## ??????????????????????????????? | | ##?????? ?? #####??????????????????????????????? | | ##?????? ####??????????????????????????????? | +----------------------------------------------------+ Best States ------------- Heat Dissipation 25 Energy Generation 10 Energy Capacity 125 Matter Stores 300 Matter Capacity 300 Sight Range 16 Robot Scan Range 14 Terrain Scan Range 16 Terrain Scan Density 10 Evasion (%) 53 Item Schematics ----------------- None Robot Schematics ------------------ None Fabricated ------------ Nothing Repaired ---------- Nothing Alien Tech Used ----------------- None Achievements -------------- Hunted Challenges ------------ None Game ------ Seed DeuteriumSchematicMultitool Manual? 0 Play Time 00:37:13 Cumulative 45.4 hours Start 2025.07.02 @ 15:43:32 End 2025.07.02 @ 16:23:00 Sessions 1 Manual Loads 0 Difficulty Rogue Special Mode None Game No. 30 Rogue 30 Adventurer 0 Explorer 0 Win Type - Total 0 Types 0/0/0/0/0/0/0/0/0/0 Lore% 20 Gallery% 31 Achievement% 31 Wizard Run 0 Options --------- Layout 1 ASCII 0 Keyboard 0 Movement Mouse Keybinds 0 Fullscreen 2 Font 32/SmallcapsGlow Map View 50x35 Zoom Use 0% Tactical HUD 0 Map Filters NONE Filters NONE Steam 1 RUN: d30e23cc-1930-459b-b22e-988c22e4a945